{"text_format":"1","workbook":"xlsx","n_sheets":3,"sheets":["Sheet1","Sheet2","Sheet3"],"not_rendered":{"charts":0,"images":0,"macros":1,"external_links":0,"defined_names":0,"comments":0,"pivot_tables":0},"unopened":[],"bounds":{"document_bytes":16777216,"sheet_cells":100000,"rows_first":2000,"rows_last":500,"rows_between":2000,"halvings":0,"cell_chars":16384,"cell_head_chars":4096},"cells_cut":0,"cells_raw":0,"read":"whole","date_system":"1900"}

{"sheet":"Sheet1","index":0,"n_rows":80,"n_cols":9,"rows_kept":80,"cut":false,"hidden":false,"merged":[[0,1,0,4],[0,6,0,8]]}
["на фирма :","Мауер  Локинг  Системс   ООД",null,null,null,null,"за периода : 01.01.2010 до 31.12.2010"]
["АКТИВ",null,null,null,null,null,null,null,"ПАСИВ"]
[null,"Сума (хил.лева)",null,null,null,null,null,"Сума (хил.лева)"]
["РАЗДЕЛИ, ГРУПИ, СТАТИИ","предходна","текуща година",null,null,null,"РАЗДЕЛИ, ГРУПИ, СТАТИИ","предходна","текуща"]
[null,"година","отч.стойност","коректив","бал.стойност",null,null,"година","година"]
["a",1,2,3,4,null,"a",1,2]
["А.НЕВНЕСЕН КАПИТАЛ",0,0,0,0,null,"A.СОБСТВЕН КАПИТАЛ:"]
[null,null,null," ",null,null,"I. Капитал"]
["Б.ДЪЛГОТРАЙНИ АКТИВИ",null,null,null,null,null,"1. Основен капитал"]
["I. Материални",null,null,null,null,null,"2. Допълнителен (запасен) капитал"]
["1.Сгради, земи, гори, трайни насаждения",null,null,null,null,null,"Общо за група I:",{"$f":"SUM(H9:H10)","v":0},{"$f":"SUM(I9:I10)","v":0}]
["2.Машини, съоръжения и оборудване"]
["3.Други дълготрайни материални активи",null,null,null,null,null,"II. Премии от емисия"]
["4.Разходи за придобиване на ДМА",null,null,null,null,null,"III. Преоценъчен резерв"]
["Общо за група I:",{"$f":"SUM(B11:B14)","v":0},{"$f":"SUM(C11:C14)","v":0},{"$f":"SUM(D11:D14)","v":0},{"$f":"SUM(E11:E14)","v":0},null,"IV. Резерви"]
[null,null,null,null,null,null,"1. Законови резерви"]
["II. Нематериални"," ",null,null,null,null,"2. Допълнителни резерви"]
["1.Разходи за учредяване и разширяване",null,null,null,null,null,"Общо за група IV:",{"$f":"SUM(H16:H17)","v":0},{"$f":"SUM(I16:I17)","v":0}]
["2.Продукти от развойна дейност"]
["3.Програмни продукти",null,null,null,null,null,"V. Резултат от предходни периоди"]
["4.Патенти,лицензи,концесии,ноу-хау",null,null,null,null,null,"1.Неразпределена печалба от минали години"]
["5.Други НМДА",null,null,null,null,null,"2.Непокрита загуба"]
["Общо за група II:",{"$f":"SUM(B18:B22)","v":0},{"$f":"SUM(C18:C22)","v":0},{"$f":"SUM(D18:D22)","v":0},{"$f":"SUM(E18:E22)","v":0},null,"Общо за група V:",{"$f":"SUM(H21:H22)","v":0},{"$f":"SUM(I21:I22)","v":0}]
[]
["III. Дългосрочни инвестиции",null,null,null,null,null,"VI. Резултат от текущия период"]
["1.Контролно участие",null,null,null,null,null,"1. Печалба"]
["2.Значително участие",null,null,null,null,null,"2. Загуба"]
["3.Малцинствено участие",null,null,null,null,null,"Общо за група VI:",{"$f":"SUM(H26:H27)","v":0},{"$f":"SUM(I26:I27)","v":0}]
["4.Инвестиционни имоти",null,null,null,null,null,"Общо за раздел \"A\"",{"$f":"SUM(H28,H23,H18,H14,H13,H11)","v":0},{"$f":"SUM(I28,I23,I18,I14,I13,I11)","v":0}]
["5.Други"]
["Общо за група III:",{"$f":"SUM(B26:B30)","v":0},{"$f":"SUM(C26:C30)","v":0},{"$f":"SUM(D26:D30)","v":0},{"$f":"SUM(E26:E30)","v":0},null,"Б.ДЪЛГОСРОЧНИ ПАСИВИ:"]
[null,null,null,null,null,null,"I. Дългосрочни задължения"]
["IV. Дългосрочни вземания",null,null,null,null,null,"1. Задължения към свързани предприятия"]
["1.Вземания от свързани предприятия",null,null,null,null,null,"2. Задължения по получени банкови заеми"]
["2.Вземания по предоставени търговски заеми",null,null,null,null,null,"3.Задължения по получени търговски заеми"]
["3.Други дългосрочни вземания",null,null,null,null,null,"4.Отсрочени данъци"]
["Общо за група IV:",{"$f":"SUM(B34:B36)","v":0},{"$f":"SUM(C34:C36)","v":0},{"$f":"SUM(D34:D36)","v":0},{"$f":"SUM(E34:E36)","v":0},null,"5.Други дългосрочни задължения"]
[null,null,null,null,null,null,"Общо за група I:",{"$f":"SUM(H33:H37)","v":0},{"$f":"SUM(I33:I37)","v":0}]
["V.Положителна репутация",0,0,0,0,null,null,null," "]
["Общо за раздел \"Б\"",{"$f":"SUM(B37,B31,B23,B15)","v":0},{"$f":"SUM(C37,C31,C23,C15)","v":0},{"$f":"SUM(D37,D31,D23,D15)","v":0},{"$f":"SUM(E37,E31,E23,E15)","v":0}]
["a",1,2,3,4,null,"a",1,2]
["B.КРАТКОТРАЙНИ АКТИВИ",null,null,null,null,null,"II.Приходи за бъдещи периоди"]
["I.Краткотрайни материални активи",null,null,null,null,null,"1.Отрицателна репутация"]
["1.Материали",null,null,null,null,null,"2.Други приходи за бъдещи периоди"]
["2.Продукция",null,null,null,null,null,"Общо за група II:",{"$f":"SUM(H43:H44)","v":0},{"$f":"SUM(I43:I44)","v":0}]
["3.Стоки",null,null,null,null,null,"Общо за раздел \"Б\"",{"$f":"SUM(H45,H38)","v":0},{"$f":"SUM(I45,I38)","v":0}]
["4.Млади животни и животни за угояване"]
["5.Незавършено производство",null,null,null,null,null,"В.КРАТКОСРОЧНИ ПАСИВИ:"]
["6.Други краткотрайни материални активи",null,null,null,null,null,"I.Краткосрочни задължения"]
["Общо за група I:",{"$f":"SUM(B44:B49)","v":0},{"$f":"SUM(C44:C49)","v":0},null,{"$f":"SUM(E44:E49)","v":0},null,"1.Задължения към свързани предприятия,"]
[null,null,null,null,null,null,"в т.ч. дивиденти"]
["II.Краткосрочни вземания",null,null,null,null,null,"2.Задължения по получени банкови заеми"]
["1.Вземания от свързани предприятия",null,null,null,null,null,"3.Задължения по получени търговски заеми"]
["2.Вземания от продажби",null,null,null,null,null,"4.Задължения към доставчици"]
["3.Предоставени аванси",null,null,null,null,null,"5.Получени аванси"]
["4.Вземания по предост.търг.заеми",null,null,null,null,null,"6.Задължения към бюджета"]
["5.Съдебни и присъдени вземания",null,null,null,null,null,"7.Задължения към персонала"]
["6.Данъци за възстановяване",null,null,null,null,null,"8.Задължения по социалното осигуряване"]
["7.Други краткосрочни вземания",null,null,null,null,null,"9.Други краткосрочни задължения"]
["Общо за група II:",{"$f":"SUM(B53:B59)","v":0},{"$f":"SUM(C53:C59)","v":0},{"$f":"SUM(D53:D59)","v":0},{"$f":"SUM(E53:E59)","v":0},null,"Общо за група I:",{"$f":"SUM(H50:H59)","v":0},{"$f":"SUM(I50:I59)","v":0}]
[]
[null,null,null,null,null,null,"II.Приходи за бъдещи периоди"]
["III.Краткосрочни инвестиции",null,null,null,null,null,"Общо за раздел \"В\"",{"$f":"SUM(H62,H60)","v":0},{"$f":"SUM(I62,I60)","v":0}]
["1.Акции и облигации в свързани предприятия"]
["  в т.ч. изкупени собствени акции и облигации",null,null,null,null,null,"Г.ФИНАНСИРАНИЯ"]
["2.Други краткосрочни инвестиции",null,null,null,null,null,"1.За дълготрайни активи"]
["Общо за група III:",{"$f":"SUM(B64:B66)","v":0},{"$f":"SUM(C64:C66)","v":0},{"$f":"SUM(D64:D66)","v":0},{"$f":"SUM(E64:E66)","v":0},null,"2.За текущата дейност"]
[null,null,null,null,null,null,"Общо за раздел \"Г\"",{"$f":"SUM(H66:H67)","v":0},{"$f":"SUM(I66:I67)","v":0}]
["IV.Парични средства"]
["1.Парични средства в брой",null,null,null,null,null,"СУМА НА ПАСИВА ",{"$f":"SUM(H68,H63,H46,H29)","v":0},{"$f":"SUM(I68,I63,I46,I29)","v":0}]
["2.Парични средства в банкови с/ки"]
["3.Блокирани парични средства/ Депозити",null,null,null,null,null,"Г.ЗАДБАЛАНСОВИ ПАСИВИ",null,0]
["Общо за група IV:",{"$f":"SUM(B70:B72)","v":0},{"$f":"SUM(C70:C72)","v":0},{"$f":"SUM(D70:D72)","v":0},{"$f":"SUM(E70:E72)","v":0}]
[]
["V.Разходи за бъдещи периоди"]
["Общо за раздел \"В\":",{"$f":"SUM(B75,B73,B67,B60,B50)","v":0},{"$f":"SUM(C75,C73,C67,C60,C50)","v":0},{"$f":"SUM(D75,D73,D67,D60,D50)","v":0},{"$f":"SUM(E75,E73,E67,E60,E50)","v":0}]
[]
["СУМА НА АКТИВА",{"$f":"SUM(B76,B40,B7)","v":0},{"$f":"SUM(C76,C40,C7)","v":0},{"$f":"SUM(D76,D40,D7)","v":0},{"$f":"SUM(E76,E40,E7)","v":0}]
[]
["Г.ЗАДБАЛАНСОВИ АКТИВИ"]

{"sheet":"Sheet2","index":1,"n_rows":0,"n_cols":0,"rows_kept":0,"cut":false,"hidden":false,"merged":[]}

{"sheet":"Sheet3","index":2,"n_rows":0,"n_cols":0,"rows_kept":0,"cut":false,"hidden":false,"merged":[]}